[Event "*** Titled Tuesday Blitz"]
[Site "Chess.com"]
[Date "2018.12.04"]
[Round "8"]
[White "TheBigBadChessDad"]
[Black "Chessmatus"]
[Result "1/2-1/2"]
[WhiteElo "2284"]
[BlackElo "2172"]
[TimeControl "180+2"]
[EndTime "14:54:39 PST"]
[Termination "Game drawn by agreement"]

1. e4 {[%clk 0:03:01.9]} 1... c5 {[%clk 0:02:59.6]} 2. Nf3 {[%clk 0:03:00.6]}
2... d6 {[%clk 0:03:00.7]} 3. Nc3 {[%clk 0:02:58.1]} 3... Nf6 {[%clk 0:02:59.6]}
4. d4 {[%clk 0:02:57.3]} 4... cxd4 {[%clk 0:03:00.5]} 5. Qxd4 {[%clk 0:02:58.3]}
5... Nc6 {[%clk 0:03:00.5]} 6. Qd2 {[%clk 0:02:51.7]} 6... g6 {[%clk 0:02:51.3]}
7. b3 {[%clk 0:02:49.4]} 7... Bg7 {[%clk 0:02:51.6]} 8. Bd3 {[%clk 0:02:50.1]}
8... O-O {[%clk 0:02:52.1]} 9. Bb2 {[%clk 0:02:50.8]} 9... Ng4 {[%clk
0:02:42.7]} 10. O-O-O {[%clk 0:02:49]} 10... Nge5 {[%clk 0:02:43.2]} 11. Nxe5
{[%clk 0:02:44.3]} 11... Nxe5 {[%clk 0:02:44.3]} 12. Be2 {[%clk 0:02:44.1]}
12... a5 {[%clk 0:02:41.2]} 13. a4 {[%clk 0:02:43.7]} 13... Bd7 {[%clk
0:02:40.8]} 14. Bb5 {[%clk 0:02:42.8]} 14... Rc8 {[%clk 0:02:35.5]} 15. Kb1
{[%clk 0:02:35.7]} 15... Nc6 {[%clk 0:02:20.1]} 16. h4 {[%clk 0:02:21.8]} 16...
Nb4 {[%clk 0:02:08.1]} 17. Bxd7 {[%clk 0:02:16.9]} 17... Qxd7 {[%clk 0:02:08.1]}
18. Rc1 {[%clk 0:02:14.5]} 18... Qg4 {[%clk 0:02:06.5]} 19. f3 {[%clk
0:02:13.4]} 19... Qh5 {[%clk 0:01:59.3]} 20. Nd5 {[%clk 0:02:02.8]} 20... Nxd5
{[%clk 0:01:58.7]} 21. Qxd5 {[%clk 0:02:00.6]} 21... Qxd5 {[%clk 0:01:55.2]} 22.
exd5 {[%clk 0:02:01.6]} 22... Rc5 {[%clk 0:01:53]} 23. c4 {[%clk 0:02:00.9]}
23... e6 {[%clk 0:01:50.3]} 24. dxe6 {[%clk 0:01:58.4]} 24... fxe6 {[%clk
0:01:50.3]} 25. Rhd1 {[%clk 0:01:52.4]} 25... Bxb2 {[%clk 0:01:39.3]} 26. Kxb2
{[%clk 0:01:53.2]} 26... Rc6 {[%clk 0:01:39.8]} 27. Rd4 {[%clk 0:01:51]} 27...
Kf7 {[%clk 0:01:37.6]} 28. h5 {[%clk 0:01:47.1]} 28... gxh5 {[%clk 0:01:31.5]}
29. Rh1 {[%clk 0:01:36.3]} 29... Rg8 {[%clk 0:01:32.3]} 30. Rf4+ {[%clk
0:01:03.6]} 30... Ke7 {[%clk 0:01:08.4]} 31. g4 {[%clk 0:01:03.3]} 31... e5
{[%clk 0:01:08.6]} 32. Re4 {[%clk 0:00:55.5]} 32... hxg4 {[%clk 0:01:08.5]} 33.
Rxh7+ {[%clk 0:00:56.3]} 33... Ke6 {[%clk 0:01:06.6]} 34. Rxg4 {[%clk
0:00:45.7]} 34... Rf8 {[%clk 0:00:52.8]} 35. Rg6+ {[%clk 0:00:23.2]} 35... Kf5
{[%clk 0:00:52]} 36. Rgg7 {[%clk 0:00:17.5]} 36... Kf4 {[%clk 0:00:53.2]} 37.
Rf7+ {[%clk 0:00:17.7]} 37... Rxf7 {[%clk 0:00:53.7]} 38. Rxf7+ {[%clk
0:00:19.6]} 38... Ke3 {[%clk 0:00:55]} 39. Kc3 {[%clk 0:00:16.6]} 39... Rc8
{[%clk 0:00:48.9]} 40. Rxb7 {[%clk 0:00:15]} 40... Kxf3 {[%clk 0:00:48.9]} 41.
Rd7 {[%clk 0:00:15.5]} 41... e4 {[%clk 0:00:46.1]} 42. Rxd6 {[%clk 0:00:14.3]}
42... e3 {[%clk 0:00:43.2]} 43. Kd3 {[%clk 0:00:15.1]} 43... Re8 {[%clk
0:00:42.2]} 44. Rf6+ {[%clk 0:00:16.2]} 44... Kg4 {[%clk 0:00:42.3]} 45. Ke2
{[%clk 0:00:15.8]} 45... Kg5 {[%clk 0:00:39.3]} 46. Rb6 {[%clk 0:00:13.7]} 46...
Kf4 {[%clk 0:00:38.7]} 47. Rf6+ {[%clk 0:00:14.6]} 47... Ke4 {[%clk 0:00:39.1]}
48. Rd6 {[%clk 0:00:15.5]} 48... Rb8 {[%clk 0:00:37.5]} 49. Re6+ {[%clk
0:00:16.7]} 49... Kd4 {[%clk 0:00:38.2]} 50. Rxe3 {[%clk 0:00:17.8]} 50... Rh8
{[%clk 0:00:39.1]} 51. Rd3+ {[%clk 0:00:15.2]} 51... Kc5 {[%clk 0:00:39.5]} 52.
Rd5+ {[%clk 0:00:16]} 52... Kb4 {[%clk 0:00:40.3]} 53. Rb5+ {[%clk 0:00:17.3]}
53... Kc3 {[%clk 0:00:41.3]} 54. Ke3 {[%clk 0:00:18.1]} 54... Re8+ {[%clk
0:00:41.2]} 55. Kf4 {[%clk 0:00:19.5]} 55... Re1 {[%clk 0:00:40.4]} 56. c5
{[%clk 0:00:19.6]} 56... Kd4 {[%clk 0:00:39.8]} 57. Kf3 {[%clk 0:00:19.1]} 57...
Rc1 {[%clk 0:00:40]} 58. Rxa5 {[%clk 0:00:18.8]} 58... Rc3+ {[%clk 0:00:41.1]}
59. Kf4 {[%clk 0:00:17.8]} 59... Rxb3 {[%clk 0:00:42.4]} 60. c6 {[%clk
0:00:18.9]} 60... Rc3 {[%clk 0:00:42.9]} 61. Ra6 {[%clk 0:00:19]} 61... Kd5
{[%clk 0:00:44.1]} 62. Kf5 {[%clk 0:00:16]} 62... Rxc6 {[%clk 0:00:44.7]} 63.
Ra5+ {[%clk 0:00:16.3]} 63... Kc4 {[%clk 0:00:44.6]} 64. Re5 {[%clk 0:00:16.2]}
64... Rc5 {[%clk 0:00:44]} 65. Rxc5+ {[%clk 0:00:15.1]} 65... Kxc5 {[%clk
0:00:45.2]} 1/2-1/2

[Event "*** Titled Tuesday Blitz"]
[Site "Chess.com"]
[Date "2018.12.04"]
[Round "8"]
[White "champ2005"]
[Black "GABUZYAN_CHESSMOOD"]
[Result "1-0"]
[WhiteElo "2689"]
[BlackElo "2795"]
[TimeControl "180+2"]
[EndTime "14:54:52 PST"]
[Termination "champ2005 won on time"]

1. b3 {[%clk 0:03:00.9]} 1... a5 {[%clk 0:03:00.1]} 2. Bb2 {[%clk 0:02:57.9]}
2... a4 {[%clk 0:03:01.1]} 3. Nf3 {[%clk 0:02:58.7]} 3... Nf6 {[%clk 0:03:01]}
4. g3 {[%clk 0:02:59.2]} 4... g6 {[%clk 0:03:01.7]} 5. Bg2 {[%clk 0:02:56.2]}
5... Bg7 {[%clk 0:03:02.9]} 6. O-O {[%clk 0:02:56.6]} 6... O-O {[%clk
0:03:04.1]} 7. c4 {[%clk 0:02:57.4]} 7... d6 {[%clk 0:03:05.2]} 8. bxa4 {[%clk
0:02:57.6]} 8... e5 {[%clk 0:03:04.8]} 9. d3 {[%clk 0:02:58.2]} 9... Na6 {[%clk
0:03:04]} 10. Nc3 {[%clk 0:02:58]} 10... Nc5 {[%clk 0:03:04.9]} 11. Nd2 {[%clk
0:02:47.1]} 11... Bd7 {[%clk 0:03:05.6]} 12. Nb3 {[%clk 0:02:47]} 12... Bxa4
{[%clk 0:03:05.8]} 13. Nxa4 {[%clk 0:02:35.9]} 13... Nxa4 {[%clk 0:03:07.7]} 14.
Bc1 {[%clk 0:02:37]} 14... e4 {[%clk 0:03:09]} 15. d4 {[%clk 0:02:33.4]} 15...
c6 {[%clk 0:03:08.2]} 16. Bg5 {[%clk 0:02:30.6]} 16... d5 {[%clk 0:03:09.3]} 17.
c5 {[%clk 0:02:27.5]} 17... Nc3 {[%clk 0:03:02]} 18. Qd2 {[%clk 0:02:13.8]}
18... Na4 {[%clk 0:02:59.4]} 19. e3 {[%clk 0:02:11.7]} 19... Qc8 {[%clk
0:02:57.4]} 20. Bxf6 {[%clk 0:02:07.8]} 20... Bxf6 {[%clk 0:02:58.3]} 21. Qb4
{[%clk 0:02:04.7]} 21... Re8 {[%clk 0:02:58.1]} 22. Na5 {[%clk 0:02:01.7]} 22...
Qc7 {[%clk 0:02:55.3]} 23. Nb3 {[%clk 0:01:50.1]} 23... Be7 {[%clk 0:02:56.4]}
24. Qd2 {[%clk 0:01:50.8]} 24... Ra7 {[%clk 0:02:57.2]} 25. Rfc1 {[%clk
0:01:50.8]} 25... Rea8 {[%clk 0:02:58.1]} 26. Rc2 {[%clk 0:01:50.9]} 26... h5
{[%clk 0:02:56.1]} 27. h4 {[%clk 0:01:51.4]} 27... b6 {[%clk 0:02:47.6]} 28.
cxb6 {[%clk 0:01:50.6]} 28... Nxb6 {[%clk 0:02:48.7]} 29. Bf1 {[%clk 0:01:49.2]}
29... Ba3 {[%clk 0:02:49.7]} 30. Bb5 {[%clk 0:01:35]} 30... Rb8 {[%clk
0:02:08.3]} 31. Rxc6 {[%clk 0:01:30.1]} 31... Qe7 {[%clk 0:02:09]} 32. Rc2
{[%clk 0:01:22]} 32... Bb4 {[%clk 0:02:08.6]} 33. Qd1 {[%clk 0:01:18.6]} 33...
Kg7 {[%clk 0:02:06.9]} 34. a4 {[%clk 0:01:18.4]} 34... Nc8 {[%clk 0:02:05]} 35.
Bf1 {[%clk 0:01:12.5]} 35... Nd6 {[%clk 0:02:05.7]} 36. a5 {[%clk 0:01:11.3]}
36... Nf5 {[%clk 0:02:04.8]} 37. a6 {[%clk 0:01:06.9]} 37... Bd6 {[%clk
0:02:05.6]} 38. Nc5 {[%clk 0:00:52.6]} 38... Bxg3 {[%clk 0:02:05.4]} 39. fxg3
{[%clk 0:00:50.9]} 39... Nxe3 {[%clk 0:02:06.4]} 40. Qd2 {[%clk 0:00:47.1]}
40... Nxc2 {[%clk 0:02:07.2]} 41. Qxc2 {[%clk 0:00:48.9]} 41... Rc7 {[%clk
0:02:06.2]} 42. Qf2 {[%clk 0:00:36.8]} 42... Rb6 {[%clk 0:02:02.5]} 43. Qe3
{[%clk 0:00:28.7]} 43... Ra7 {[%clk 0:01:51.6]} 44. Qg5 {[%clk 0:00:26.8]} 44...
Qd6 {[%clk 0:01:49.3]} 45. Qf4 {[%clk 0:00:19.8]} 45... Qe7 {[%clk 0:01:48.4]}
46. Qg5 {[%clk 0:00:19.9]} 46... Rf6 {[%clk 0:01:45.3]} 47. Be2 {[%clk
0:00:17.7]} 47... Kh7 {[%clk 0:01:37]} 48. Rf1 {[%clk 0:00:18.1]} 48... Rxf1+
{[%clk 0:01:35.1]} 49. Bxf1 {[%clk 0:00:20]} 49... Qc7 {[%clk 0:01:33.1]} 50.
Qf4 {[%clk 0:00:19.7]} 50... Qb6 {[%clk 0:01:33.1]} 51. Qe5 {[%clk 0:00:20.1]}
51... Qc6 {[%clk 0:01:27.2]} 52. Qb8 {[%clk 0:00:16.6]} 52... Ra8 {[%clk
0:01:22.5]} 53. Qb7 {[%clk 0:00:17.5]} 53... Qd6 {[%clk 0:01:15.9]} 54. Qxf7+
{[%clk 0:00:16.3]} 54... Kh8 {[%clk 0:01:15.3]} 55. Qf4 {[%clk 0:00:17.8]} 55...
Qxf4 {[%clk 0:01:12.3]} 56. gxf4 {[%clk 0:00:19.7]} 56... Kg7 {[%clk 0:01:14.1]}
57. Bb5 {[%clk 0:00:19.3]} 57... Kf6 {[%clk 0:01:16]} 58. Bc6 {[%clk 0:00:20.5]}
58... Ra7 {[%clk 0:01:16.6]} 59. Bxd5 {[%clk 0:00:21.7]} 1-0

[Event "*** Titled Tuesday Blitz"]
[Site "Chess.com"]
[Date "2018.12.04"]
[Round "8"]
[White "Atanejhad"]
[Black "dmosesov"]
[Result "1-0"]
[WhiteElo "2287"]
[BlackElo "2341"]
[TimeControl "180+2"]
[EndTime "14:54:55 PST"]
[Termination "Atanejhad won on time"]

1. d4 {[%clk 0:03:01.9]} 1... Nf6 {[%clk 0:03:00.2]} 2. c4 {[%clk 0:03:02.5]}
2... e6 {[%clk 0:03:00.6]} 3. Nf3 {[%clk 0:03:02.1]} 3... a6 {[%clk 0:02:57.9]}
4. g3 {[%clk 0:02:55.8]} 4... b5 {[%clk 0:02:58.3]} 5. Bg2 {[%clk 0:02:55.3]}
5... Bb7 {[%clk 0:02:56.9]} 6. O-O {[%clk 0:02:55]} 6... bxc4 {[%clk 0:02:53.7]}
7. Qc2 {[%clk 0:02:55.1]} 7... d5 {[%clk 0:02:41.9]} 8. Ne5 {[%clk 0:02:55.8]}
8... Nbd7 {[%clk 0:02:33.1]} 9. Nxc4 {[%clk 0:02:56.1]} 9... c5 {[%clk
0:02:15.7]} 10. dxc5 {[%clk 0:02:56.4]} 10... Bxc5 {[%clk 0:02:09]} 11. Be3
{[%clk 0:02:50.6]} 11... Bxe3 {[%clk 0:02:05.9]} 12. Nd6+ {[%clk 0:02:51]} 12...
Ke7 {[%clk 0:02:01.2]} 13. Nxb7 {[%clk 0:02:52.1]} 13... Qb6 {[%clk 0:01:53.6]}
14. fxe3 {[%clk 0:02:50]} 14... Qxb7 {[%clk 0:01:54.8]} 15. Nc3 {[%clk
0:02:49.9]} 15... Rhc8 {[%clk 0:01:52.6]} 16. Qd2 {[%clk 0:02:48.8]} 16... Rab8
{[%clk 0:01:50.4]} 17. b3 {[%clk 0:02:48.6]} 17... Qb4 {[%clk 0:01:41.7]} 18.
Rac1 {[%clk 0:02:45.7]} 18... a5 {[%clk 0:01:18.4]} 19. h3 {[%clk 0:02:04.6]}
19... h5 {[%clk 0:01:08]} 20. Rf4 {[%clk 0:02:05.8]} 20... Qb6 {[%clk 0:01:01]}
21. Na4 {[%clk 0:01:53.8]} 21... Qa7 {[%clk 0:00:53.2]} 22. Kh2 {[%clk
0:01:46.1]} 22... Qa6 {[%clk 0:00:25.4]} 23. Rcf1 {[%clk 0:01:39.5]} 23... Rc6
{[%clk 0:00:20.4]} 24. e4 {[%clk 0:01:40]} 24... dxe4 {[%clk 0:00:19.5]} 25.
Bxe4 {[%clk 0:01:39.6]} 25... Rd6 {[%clk 0:00:20]} 26. Qe3 {[%clk 0:01:30.4]}
26... Rb4 {[%clk 0:00:21.3]} 27. Bd3 {[%clk 0:01:13.9]} 27... Qa8 {[%clk
0:00:19]} 28. Nc5 {[%clk 0:01:04.7]} 28... Nxc5 {[%clk 0:00:17.4]} 29. Qxc5
{[%clk 0:01:04.9]} 29... Rxf4 {[%clk 0:00:17.3]} 30. Rxf4 {[%clk 0:01:04.1]}
30... Qd5 {[%clk 0:00:06]} 31. Qxd5 {[%clk 0:00:33.7]} 31... Nxd5 {[%clk
0:00:07.9]} 32. Ra4 {[%clk 0:00:33.3]} 32... Nb4 {[%clk 0:00:09.1]} 33. Bc4
{[%clk 0:00:29.6]} 33... Rd2 {[%clk 0:00:09.2]} 34. a3 {[%clk 0:00:28.3]} 34...
Nc6 {[%clk 0:00:08.9]} 35. Bb5 {[%clk 0:00:28.3]} 35... Nd4 {[%clk 0:00:09.5]}
36. Rxa5 {[%clk 0:00:25.9]} 36... Nxb3 {[%clk 0:00:10.8]} 37. Ra7+ {[%clk
0:00:25.9]} 37... Kf6 {[%clk 0:00:11.1]} 38. a4 {[%clk 0:00:26.6]} 38... Nd4
{[%clk 0:00:11.6]} 39. Be8 {[%clk 0:00:21.3]} 39... Rxe2+ {[%clk 0:00:12.8]} 40.
Kg1 {[%clk 0:00:22.2]} 40... Ke5 {[%clk 0:00:12.7]} 41. Rxf7 {[%clk 0:00:21.8]}
41... g5 {[%clk 0:00:10]} 42. Rf2 {[%clk 0:00:20.5]} 42... Re1+ {[%clk
0:00:11.3]} 43. Kg2 {[%clk 0:00:21.3]} 43... h4 {[%clk 0:00:11.3]} 44. gxh4
{[%clk 0:00:20.5]} 44... gxh4 {[%clk 0:00:13.2]} 45. Ra2 {[%clk 0:00:18.7]}
45... Nf5 {[%clk 0:00:12.6]} 46. a5 {[%clk 0:00:18.4]} 46... Kf4 {[%clk
0:00:13.3]} 47. a6 {[%clk 0:00:19.2]} 47... Ne3+ {[%clk 0:00:13.4]} 48. Kf2
{[%clk 0:00:15.2]} 48... Rf1+ {[%clk 0:00:07.5]} 49. Ke2 {[%clk 0:00:16.5]}
49... Rh1 {[%clk 0:00:05.2]} 50. Ra4+ {[%clk 0:00:16.5]} 50... Kg3 {[%clk
0:00:06.6]} 51. Kxe3 {[%clk 0:00:17.6]} 51... Rxh3 {[%clk 0:00:06.4]} 52. a7
{[%clk 0:00:17.5]} 1-0

[Event "*** Titled Tuesday Blitz"]
[Site "Chess.com"]
[Date "2018.12.04"]
[Round "8"]
[White "AndrewDGreen"]
[Black "ruvat"]
[Result "1-0"]
[WhiteElo "2246"]
[BlackElo "2298"]
[TimeControl "180+2"]
[EndTime "14:55:11 PST"]
[Termination "AndrewDGreen won on time"]

1. d4 {[%clk 0:03:01.9]} 1... d6 {[%clk 0:03:00.1]} 2. e4 {[%clk 0:03:02.2]}
2... Nf6 {[%clk 0:03:00.4]} 3. Nc3 {[%clk 0:03:03]} 3... g6 {[%clk 0:03:01.5]}
4. Be3 {[%clk 0:03:02.5]} 4... Bg7 {[%clk 0:03:01.9]} 5. Qd2 {[%clk 0:03:04]}
5... c6 {[%clk 0:03:02.8]} 6. Bh6 {[%clk 0:02:58.8]} 6... Bxh6 {[%clk
0:03:02.7]} 7. Qxh6 {[%clk 0:03:00.7]} 7... Qa5 {[%clk 0:03:04]} 8. Bd3 {[%clk
0:02:57.6]} 8... c5 {[%clk 0:03:03.7]} 9. d5 {[%clk 0:02:57.5]} 9... Nbd7 {[%clk
0:03:04.6]} 10. Nf3 {[%clk 0:02:52.9]} 10... c4 {[%clk 0:03:04.7]} 11. Bxc4
{[%clk 0:02:50.4]} 11... Qc5 {[%clk 0:03:05.5]} 12. Bd3 {[%clk 0:02:46.9]} 12...
Qxf2+ {[%clk 0:03:06.2]} 13. Kxf2 {[%clk 0:02:48.8]} 13... Ng4+ {[%clk
0:03:07.3]} 14. Kg3 {[%clk 0:02:50.5]} 14... Nxh6 {[%clk 0:03:08.8]} 15. h3
{[%clk 0:02:52.1]} 15... a6 {[%clk 0:03:02.9]} 16. b4 {[%clk 0:02:50]} 16... O-O
{[%clk 0:02:53.5]} 17. a4 {[%clk 0:02:49.9]} 17... Kg7 {[%clk 0:02:54.1]} 18.
Ne2 {[%clk 0:02:45.7]} 18... Ng8 {[%clk 0:02:53.3]} 19. Rhf1 {[%clk 0:02:45.7]}
19... Ngf6 {[%clk 0:02:54.1]} 20. Ned4 {[%clk 0:02:42]} 20... Re8 {[%clk
0:02:28.4]} 21. a5 {[%clk 0:02:40.7]} 21... e5 {[%clk 0:02:24.7]} 22. dxe6
{[%clk 0:02:41.3]} 22... fxe6 {[%clk 0:02:24.7]} 23. c4 {[%clk 0:02:24.3]} 23...
e5 {[%clk 0:02:22.7]} 24. Ne2 {[%clk 0:02:12.4]} 24... Nh5+ {[%clk 0:02:23]} 25.
Kh2 {[%clk 0:02:12]} 25... Ndf6 {[%clk 0:02:20.6]} 26. g3 {[%clk 0:01:36.6]}
26... Be6 {[%clk 0:02:10.4]} 27. Rac1 {[%clk 0:01:06.7]} 27... Rac8 {[%clk
0:02:03]} 28. Nd2 {[%clk 0:01:03.6]} 28... Rc7 {[%clk 0:01:52.3]} 29. Rb1 {[%clk
0:00:55.9]} 29... Nd7 {[%clk 0:01:38]} 30. Nc3 {[%clk 0:00:39.6]} 30... Nhf6
{[%clk 0:01:07.1]} 31. Rfc1 {[%clk 0:00:24.3]} 31... Rec8 {[%clk 0:01:06.5]} 32.
Ne2 {[%clk 0:00:22.6]} 32... Bf7 {[%clk 0:00:41.6]} 33. Kg2 {[%clk 0:00:19.6]}
33... Nf8 {[%clk 0:00:42]} 34. Kh2 {[%clk 0:00:19.5]} 34... N6d7 {[%clk
0:00:42.9]} 35. Kg2 {[%clk 0:00:14.9]} 35... Ne6 {[%clk 0:00:42.8]} 36. Kh2
{[%clk 0:00:15.5]} 36... h5 {[%clk 0:00:41.2]} 37. Kg2 {[%clk 0:00:14.7]} 37...
g5 {[%clk 0:00:35]} 38. Rc2 {[%clk 0:00:15.8]} 38... g4 {[%clk 0:00:34.8]} 39.
h4 {[%clk 0:00:16.4]} 39... Bg6 {[%clk 0:00:31.1]} 40. Rbc1 {[%clk 0:00:17]}
40... Nf6 {[%clk 0:00:26.4]} 41. Nc3 {[%clk 0:00:14.8]} 41... Nd4 {[%clk
0:00:25.9]} 42. Rb2 {[%clk 0:00:13.9]} 42... Rf8 {[%clk 0:00:25.3]} 43. Rf1
{[%clk 0:00:13.4]} 43... Rcf7 {[%clk 0:00:24.6]} 44. Rbb1 {[%clk 0:00:11.6]}
44... Nd7 {[%clk 0:00:19.1]} 45. Rxf7+ {[%clk 0:00:09.7]} 45... Bxf7 {[%clk
0:00:17.8]} 46. Rf1 {[%clk 0:00:08.6]} 46... Be6 {[%clk 0:00:17.1]} 47. Nd5
{[%clk 0:00:08]} 47... Bxd5 {[%clk 0:00:17.3]} 48. cxd5 {[%clk 0:00:09.9]} 48...
Rc8 {[%clk 0:00:16.3]} 49. Nc4 {[%clk 0:00:10.5]} 49... Nf6 {[%clk 0:00:07.3]}
50. Nxd6 {[%clk 0:00:10.2]} 50... Rc3 {[%clk 0:00:08.2]} 51. Bb1 {[%clk
0:00:10.4]} 51... Rb3 {[%clk 0:00:06.8]} 52. Nxb7 {[%clk 0:00:09.4]} 52... Rb2+
{[%clk 0:00:07.1]} 53. Kg1 {[%clk 0:00:07.9]} 53... Rxb4 {[%clk 0:00:07.6]} 54.
Nd6 {[%clk 0:00:06.2]} 54... Rb3 {[%clk 0:00:07.9]} 55. Nf5+ {[%clk 0:00:06.4]}
55... Nxf5 {[%clk 0:00:08]} 56. exf5 {[%clk 0:00:08.3]} 56... Rxg3+ {[%clk
0:00:09.1]} 57. Kh2 {[%clk 0:00:09.2]} 57... Rh3+ {[%clk 0:00:09.5]} 58. Kg2
{[%clk 0:00:10.2]} 58... Rxh4 {[%clk 0:00:07.5]} 59. Rd1 {[%clk 0:00:09.5]}
59... Nd7 {[%clk 0:00:03.8]} 60. d6 {[%clk 0:00:10.7]} 60... Kf6 {[%clk
0:00:04.6]} 61. Ba2 {[%clk 0:00:11.6]} 1-0

[Event "*** Titled Tuesday Blitz"]
[Site "Chess.com"]
[Date "2018.12.04"]
[Round "8"]
[White "731291"]
[Black "BocharovD"]
[Result "1/2-1/2"]
[WhiteElo "2608"]
[BlackElo "2724"]
[TimeControl "180+2"]
[EndTime "14:55:26 PST"]
[Termination "Game drawn by repetition"]

1. Nf3 {[%clk 0:03:01.9]} 1... Nf6 {[%clk 0:02:58.9]} 2. g3 {[%clk 0:03:03]}
2... g6 {[%clk 0:03:00.3]} 3. Bg2 {[%clk 0:03:04.6]} 3... Bg7 {[%clk 0:03:01.9]}
4. O-O {[%clk 0:03:06.2]} 4... O-O {[%clk 0:03:03.6]} 5. d4 {[%clk 0:03:07.8]}
5... d6 {[%clk 0:03:05.2]} 6. c4 {[%clk 0:03:08.7]} 6... c6 {[%clk 0:03:06.3]}
7. Nbd2 {[%clk 0:03:07.5]} 7... Nbd7 {[%clk 0:03:01.6]} 8. b3 {[%clk 0:03:07.8]}
8... Re8 {[%clk 0:02:49.4]} 9. Bb2 {[%clk 0:03:08.4]} 9... e5 {[%clk 0:02:48.4]}
10. dxe5 {[%clk 0:02:54]} 10... dxe5 {[%clk 0:02:50.3]} 11. Ng5 {[%clk
0:02:40.9]} 11... Nc5 {[%clk 0:01:25.3]} 12. b4 {[%clk 0:02:32.3]} 12... Bh6
{[%clk 0:01:20.2]} 13. Nde4 {[%clk 0:02:12.5]} 13... Ncxe4 {[%clk 0:01:19]} 14.
Nxe4 {[%clk 0:02:09.5]} 14... Nxe4 {[%clk 0:01:20.3]} 15. Bxe4 {[%clk
0:02:08.6]} 15... Qe7 {[%clk 0:01:19.2]} 16. Qb3 {[%clk 0:02:06.7]} 16... Bg7
{[%clk 0:01:17.9]} 17. a4 {[%clk 0:01:42.6]} 17... Be6 {[%clk 0:01:16.7]} 18. b5
{[%clk 0:01:44]} 18... f5 {[%clk 0:01:10.1]} 19. Bg2 {[%clk 0:01:33.1]} 19... e4
{[%clk 0:01:11.4]} 20. Bxg7 {[%clk 0:01:32.9]} 20... Qxg7 {[%clk 0:01:11]} 21.
Rfc1 {[%clk 0:01:33.6]} 21... c5 {[%clk 0:01:08.6]} 22. e3 {[%clk 0:01:29.2]}
22... Rad8 {[%clk 0:01:07.6]} 23. Bf1 {[%clk 0:01:30.6]} 23... Rd7 {[%clk
0:01:01.2]} 24. b6 {[%clk 0:01:22.7]} 24... a6 {[%clk 0:01:01.4]} 25. Qa3 {[%clk
0:01:22.8]} 25... Qe5 {[%clk 0:01:00.9]} 26. Rd1 {[%clk 0:01:13.5]} 26... Red8
{[%clk 0:01:01.9]} 27. Qb3 {[%clk 0:01:15]} 27... Kf7 {[%clk 0:00:55]} 28. Rxd7+
{[%clk 0:01:12.8]} 28... Rxd7 {[%clk 0:00:56.9]} 29. Rd1 {[%clk 0:01:13.7]}
29... Ke7 {[%clk 0:00:56.3]} 30. Rxd7+ {[%clk 0:01:13.1]} 30... Bxd7 {[%clk
0:00:58.2]} 31. Qa3 {[%clk 0:01:01.7]} 31... a5 {[%clk 0:00:53.3]} 32. Kg2
{[%clk 0:00:58.2]} 32... g5 {[%clk 0:00:52.9]} 33. Qc1 {[%clk 0:00:55.2]} 33...
Bxa4 {[%clk 0:00:46.1]} 34. Qa3 {[%clk 0:00:53.7]} 34... Bc6 {[%clk 0:00:45.2]}
35. Qxa5 {[%clk 0:00:53.4]} 35... f4 {[%clk 0:00:46.8]} 36. Qd2 {[%clk
0:00:44.1]} 36... h5 {[%clk 0:00:41]} 37. Kg1 {[%clk 0:00:40.6]} 37... f3 {[%clk
0:00:40.8]} 38. Qa5 {[%clk 0:00:33.6]} 38... Qd6 {[%clk 0:00:38]} 39. Qc3 {[%clk
0:00:33.8]} 39... Qf6 {[%clk 0:00:34.3]} 40. Qa5 {[%clk 0:00:33.6]} 40... Qe5
{[%clk 0:00:30.7]} 41. Qa8 {[%clk 0:00:33.5]} 41... g4 {[%clk 0:00:29.5]} 42.
Qg8 {[%clk 0:00:32]} 42... Be8 {[%clk 0:00:27]} 43. h3 {[%clk 0:00:29.2]} 43...
Kd6 {[%clk 0:00:21.5]} 44. hxg4 {[%clk 0:00:28.1]} 44... hxg4 {[%clk 0:00:23.4]}
45. Qxg4 {[%clk 0:00:29.1]} 45... Kc6 {[%clk 0:00:25]} 46. Qc8+ {[%clk
0:00:26.7]} 46... Kxb6 {[%clk 0:00:26.3]} 47. Bh3 {[%clk 0:00:27.3]} 47... Bc6
{[%clk 0:00:24.7]} 48. Qe6 {[%clk 0:00:22.6]} 48... Qa1+ {[%clk 0:00:22.8]} 49.
Bf1 {[%clk 0:00:23.1]} 49... Ka5 {[%clk 0:00:21.7]} 50. g4 {[%clk 0:00:21.7]}
50... Qh8 {[%clk 0:00:20.4]} 51. Qf5 {[%clk 0:00:20.1]} 51... Kb4 {[%clk
0:00:19.2]} 52. g5 {[%clk 0:00:21.1]} 52... Qh5 {[%clk 0:00:20.4]} 53. Qf4
{[%clk 0:00:20.4]} 53... Kb3 {[%clk 0:00:19.8]} 54. Qg3 {[%clk 0:00:21.6]} 54...
Be8 {[%clk 0:00:18.1]} 55. Bh3 {[%clk 0:00:20.4]} 55... b6 {[%clk 0:00:18.2]}
56. Be6 {[%clk 0:00:21.1]} 56... Kb4 {[%clk 0:00:16.6]} 57. Bd5 {[%clk
0:00:22.4]} 57... Bg6 {[%clk 0:00:17.9]} 58. Qf4 {[%clk 0:00:21.9]} 58... Qh8
{[%clk 0:00:18.6]} 59. Qf6 {[%clk 0:00:22.4]} 59... Qh3 {[%clk 0:00:15.9]} 60.
Qxb6+ {[%clk 0:00:20.6]} 60... Kc3 {[%clk 0:00:17.3]} 61. Qa5+ {[%clk
0:00:21.9]} 61... Kb3 {[%clk 0:00:15.9]} 62. Qb5+ {[%clk 0:00:23.2]} 62... Kc3
{[%clk 0:00:08.3]} 63. Qa5+ {[%clk 0:00:24.4]} 63... Kb3 {[%clk 0:00:09.4]} 64.
Qb5+ {[%clk 0:00:25.2]} 64... Kc3 {[%clk 0:00:06.9]} 65. Qa5+ {[%clk 0:00:26.2]}
65... Kb3 {[%clk 0:00:07.6]} 66. Qb5+ {[%clk 0:00:17.7]} 66... Kc3 {[%clk
0:00:08]} 67. Qa5+ {[%clk 0:00:18.2]} 67... Kb3 {[%clk 0:00:09]} 68. Qb5+ {[%clk
0:00:19.3]} 68... Kc3 {[%clk 0:00:08.9]} 1/2-1/2